Cogmind - Beta 14 X2 @@@ ROGUE MODE // 2024.07.31 @ 19:57:25 Player: szymekc Result: Destroyed by G-34 Mercenary with Small Laser Performance ------------- Evolutions (0) 0 Regions Visited (2) 400 Robots Destroyed (43) 215 Value Destroyed (1240) 1240 Prototype IDs (11) 220 Alien Tech Used (0) 0 Bonus (0) 0 TOTAL SCORE: 2075 Bonus ------- None Cogmind --------- Core Integrity 0/250 Matter 285/300 Energy 10/100 System Corruption 0% Temperature Warning (304) Movement Rolling (230) Ox10 Location -10/Subcaves Parts ------- > --- POWER (1) -------- (None) > --- PROPULSION (2) --- Wheel Wheel > --- UTILITY (2) ------ Humpback > --- WEAPON (2) ------- Subdweller Beam Cannon Subdweller Beam Cannon > --- INVENTORY (35) --- Subdweller Power Source High-capacity Storage Unit Subdweller Optics Makeshift Light Armor Plating Scrap Shield Cobbler Unit Subdweller Laser Subdweller Beam Cannon Battle Rifle Subdweller Machine Gun Subdweller Machine Gun Subdweller Machine Gun Barrage Gun Light Cannon Battle Cannon Subdweller Shrapnel Launcher Hammer Makeshift Sword SUBCON Basin (Full) Peak State ------------ > --- POWER ------------ Ion Engine Subdweller Power Source > --- PROPULSION ------- Subdweller Monowheel Subdweller Monowheel > --- UTILITY ---------- High-capacity Storage Unit Tower Shield > --- WEAPON ----------- Riot Gun Riot Gun Light Cannon Makeshift Sword > --- INVENTORY -------- Subdweller Power Source Subdweller Monowheel Subdweller Monowheel Subdweller Optics Makeshift Light Armor Plating Scrap Shield Cobbler Unit Subdweller Beam Cannon Subdweller Beam Cannon Battle Rifle Battle Rifle Subdweller Machine Gun Subdweller Machine Gun Barrage Gun Battle Cannon Grenade Launcher Hammer Shrapnel Trap [Rating: 43] Favorites ----------- Power Ion Engine Engine Ion Engine Power Core Light Nuclear Core Propulsion Light Treads Treads Light Treads Leg Aluminum Leg Wheel Subdweller Monowheel Utility High-capacity Storage Unit Device Seismic Detector Storage High-capacity Storage Unit Protection Makeshift Light Armor Plating Weapon Light Cannon Energy Gun Riot Gun Energy Cannon Subdweller Beam Cannon Ballistic Gun Assault Rifle Ballistic Cannon Light Cannon Launcher Grenade Launcher Impact Weapon Hammer Slashing Weapon Makeshift Sword Build | -11 -10 -10 ------- Run | Yrd Mat Sub Slots Evolved . | . . . Power . | . . . Propulsion . | . . . Utility . | . . . Weapon . | . . . Parts Attached 64 | 3 7 54 Power 10 | . 1 9 Engine 9 | . . 9 Core 1 | . 1 . Reactor . | . . . Propulsion 13 | 2 . 11 Treads 5 | 2 . 3 Leg . | . . . Wheel 8 | . . 8 Hover . | . . . Flight . | . . . Utility 14 | . 3 11 Device 3 | . 1 2 Storage 4 | . 1 3 Processor . | . . . Hackware . | . . . Protection 7 | . 1 6 Artifact . | . . . Weapon 27 | 1 3 23 Energy Gun 5 | 1 . 4 Energy Cannon 3 | . . 3 Ballistic Gun 2 | . 1 1 Ballistic Cannon 11 | . 2 9 Launcher 1 | . . 1 Special Weapon . | . . . Impact Weapon 1 | . . 1 Slashing Weapon 4 | . . 4 Piercing Weapon . | . . . Special Melee Weapon . | . . . Unidentified Prototypes . | . . . Parts Lost 8 | . . 8 Power 4 | . . 4 Propulsion 2 | . . 2 Utility 2 | . . 2 Weapon . | . . . Highest Loss Streak 2 | . . 2 To Critical Strikes 1 | . . 1 Average Slot Usage (%) 86 | . 97 83 Engine 10 | . 10 10 Core 1 | . 3 . Treads 19 | . 28 16 Wheel 5 | . . 7 Device 1 | . 2 . Storage 9 | . 14 8 Protection 9 | . 9 9 Energy Gun 4 | . 3 5 Ballistic Gun 2 | . 5 1 Ballistic Cannon 15 | . 18 14 Slashing Weapon 4 | . . 5 Naked Turns . | . . . Heaviest Build 210 | 13 34 210 Greatest Support 40 | 40 40 40 Greatest Overweight (x) 10 | . . 10 Average Overweight (x) 1 | . . 1 Largest Inventory Capacity 35 | 8 15 35 Average Capacity 16 | 8 14 16 Most Carried 35 | 6 15 35 Average Carried 12 | 4 12 12 Final Capacity 35 | 8 15 35 Final Carried 35 | 5 15 35 Class Distribution -------------------- 62% | Mutant 16% | Derelict-Gunner 11% | Derelict-Mutant 6% | Hauler-Mutant Dominant Class ---------------- Mutant | -10/Materials Mutant | -10/Subcaves Resources | -11 -10 -10 ----------- Run | Yrd Mat Sub Matter Collected 1614 | 238 455 921 Remotely . | . . . Salvage Created 1590 | 84 516 990 Parts 89 | 3 29 57 Haulers Intercepted 1 | . 1 . Recyclers Shooed 1 | 1 . . Parts Field Recycled . | . . . Retrieved Matter . | . . . Parts Self-Destructed 11 | . . 11 Prevented . | . . . Kills | -11 -10 -10 ------- Run | Yrd Mat Sub Combat Hostiles Destroyed 34 | . 11 23 Melee 3 | . . 3 Guns 7 | . 4 3 Cannons 23 | . 7 16 Classes Destroyed 11 | 2 5 4 Builder 1 | . 1 . Tunneler 1 | 1 . . Hauler 1 | . 1 . Recycler 3 | 1 2 . Turret 2 | . . 2 Watcher 1 | . 1 . Swarmer 8 | . 5 3 Grunt 7 | . 6 1 Sentry 1 | . . 1 Cobbler 1 | . . 1 Subdweller 18 | . . 18 Best Kill Streak 5 | 2 5 3 Combat Bots Only 4 | . 4 3 Max Kills in Single Turn 2 | 1 2 1 Gunslinging . | . . . Exploded . | . . . Melee 1 | . . 1 Uniques/NPCs Destroyed . | . . . Combat | -11 -10 -10 -------- Run | Yrd Mat Sub Hostile Shots Fired 228 | . 32 196 Missed 75 | . 7 68 Damage Taken 2478 | . 260 2218 Core 255 | . 47 208 Absorbed by Shields . | . . . Core Remaining (%) 100 | 100 . . Volleys Fired 153 | 8 38 107 Largest 3 | 2 2 3 Hottest 160 | 60 70 160 Shots Fired 284 | 16 75 193 Gun 111 | 16 33 62 Cannon 169 | . 42 127 Launcher 4 | . . 4 Special . | . . . Kinetic 167 | 8 59 100 Thermal 60 | 7 16 37 Explosive 4 | . . 4 Electromagnetic 53 | 1 . 52 Robot Hit Streak 20 | 3 11 20 Robot Miss Streak 4 | 4 2 3 Penetration Max . | . . . Secondary Targets . | . . . Shots Hit Robots 224 | 7 49 168 Core Hits 69 | 3 18 48 Critical Kills . | . . . Critical Parts Destroyed . | . . . Critical Strikes 4 | . 2 2 Blast 4 | . 2 2 Melee Attacks 44 | . . 44 Impact . | . . . Slashing 44 | . . 44 Piercing . | . . . Sneak Attacks 2 | . . 2 Combat Hostiles . | . . . Follow-up Attacks . | . . . Damage Inflicted 4697 | 82 768 3847 Guns 1086 | 82 258 746 Cannons 2585 | . 510 2075 Explosions 140 | . . 140 Melee 886 | . . 886 Ramming . | . . . Kinetic 2047 | 51 634 1362 Thermal 1134 | 31 134 969 Explosive 16 | . . 16 Electromagnetic 614 | . . 614 Impact . | . . . Slashing 886 | . . 886 Piercing . | . . . Highest Corruption . | . . . Average Corruption . | . . . Corruption Purged . | . . . Corruption Blocked . | . . . Overload Shots . | . . . Overflow Damage 87 | . . 87 Projectiles 26 | . . 26 Explosions 13 | . . 13 Melee 48 | . . 48 Knockbacks 17 | . 5 12 Impact . | . . . Kinetic 17 | . 5 12 Secondary . | . . . Self-Inflicted Damage 78 | . . 78 Shots 2 | . . 2 Rammed . | . . . Targets Rammed 1 | . 1 . Kicked . | . . . Crushed 1 | . 1 . Highest Temperature 303 | . 117 303 Average Temperature 65 | . 41 86 Received Heat Transfer 871 | . 81 790 Effects 2 | . . 2 Interference 2 | . . 2 Siege Activations . | . . . Robots Corrupted 2 | . . 2 Combat Hostiles 2 | . . 2 Parts Fried 5 | . . 5 Impact Corruptions . | . . . Robots Melted . | . . . Combat Hostiles . | . . . Parts Melted 2 | 1 . 1 Heat Transferred 1585 | 75 300 1210 Parts Sabotaged . | . . . Parts Stolen . | . . . Parts Stripped . | . . . Power Chain Reactions 1 | . . 1 Alert | -11 -10 -10 ------- Run | Yrd Mat Sub Peak Influence 163 | 10 163 . Initial 6 | . 6 . Average 107 | 5 111 . Maximum Alert Level . | . . . Low Security (%) 100 | 100 100 . Level 1 . | . . . Level 2 . | . . . Level 3 . | . . . Level 4 . | . . . Level 5 . | . . . High Security . | . . . Max Security . | . . . Squads Dispatched 2 | . 2 . Investigation . | . . . Extermination . | . . . Reinforcement 2 | . 2 . Assault . | . . . Garrison . | . . . Intercept . | . . . Searches Triggered . | . . . Construction Impeded . | . . . Haulers Reinforced . | . . . Active Scanning Responses . | . . . Cargo Convoy Interrupts . | . . . Stealth | -11 -10 -10 --------- Run | Yrd Mat Sub Distress Signals 1 | . 1 . Communications Jammed . | . . . Distress Signals . | . . . Times Spotted 59 | . 18 41 Peak Tracking Total 5 | . 5 4 Tactical Retreats 5 | . 1 4 Traps | -11 -10 -10 ------- Run | Yrd Mat Sub Traps Triggered 1 | . 1 . Indirectly . | . . . Trap Hack Attempts . | . . . Triggered . | . . . Disarmed 4 | . 4 . Reprogrammed . | . . . Reused . | . . . Traps Extracted . | . . . Installed . | . . . Triggered 3 | . . 3 Most Traps Carried 1 | . . 1 Machines | -11 -10 -10 ---------- Run | Yrd Mat Sub Machines Disabled 6 | . 2 4 Max in Single Turn 2 | . 1 2 Machines Repaired . | . . . Machines Dismantled . | . . . Machines Sabotaged . | . . . Overloaded Fab Kills . | . . . Hacking | -11 -10 -10 --------- Run | Yrd Mat Sub Machines Accessed 10 | . 6 4 Terminals 6 | . 6 . Fabricators . | . . . Repair Stations . | . . . Recycling Units . | . . . Scanalyzers . | . . . Garrison Access . | . . . Total Hacks 27 | . 20 7 Successful 17 | . 10 7 Failed 10 | . 10 . Catastrophic . | . . . Database Lockouts . | . . . Manual 14 | . 14 . Terminals 20 | . 20 . Fabricators . | . . . Repair Stations . | . . . Recycling Units . | . . . Scanalyzers . | . . . Garrison Access . | . . . Terminal Hacks 10 | . 3 7 Record 4 | . . 4 Robot Analysis 2 | . 2 . Open Door 1 | . . 1 Disarm Traps 1 | . 1 . Derelict Proto ID Bank 1 | . . 1 Release Object 1 | . . 1 Fabricator Hacks . | . . . Repair Station Hacks . | . . . Recycling Unit Hacks . | . . . Scanalyzer . | . . . Garrison Access Hacks . | . . . Unauthorized Hacks 7 | . 7 . Terminals 7 | . 7 . Botnet 2 | . 2 . Skim 5 | . 5 . Fabricators . | . . . Repair Stations . | . . . Recycling Units . | . . . Scanalyzers . | . . . Garrison Access . | . . . Data Cores Recovered . | . . . Used . | . . . Hacking Detections 6 | . 6 . Full Trace Events . | . . . Feedback Events . | . . . Feedback Blocked . | . . . Robot Schematics Acquired . | . . . Robots Built . | . . . Authchips . | . . . Time . | . . . Total Robot Build Rating . | . . . Part Schematics Acquired . | . . . Parts Built . | . . . Authchips . | . . . Time . | . . . Total Part Build Rating . | . . . Parts Repaired . | . . . Time . | . . . Parts Recycled . | . . . Recycled Matter . | . . . Retrieved Matter . | . . . Retrieved Components . | . . . Parts Scanalyzed . | . . . Part Schematics Acquired . | . . . Parts Damaged . | . . . Bothacking | -11 -10 -10 ------------ Run | Yrd Mat Sub Used RIF Installer . | . . . Robots Hacked . | . . . Non-combat . | . . . Combat . | . . . Robot Hacks Applied . | . . . Relay Couplers Released . | . . . Fabnet Peak Effective % . | . . . Robots Rewired . | . . . Allies Hacked . | . . . Hacks Repelled . | . . . Allies | -11 -10 -10 -------- Run | Yrd Mat Sub Total Allies . | . . . Largest Group . | . . . Highest-Rated Group . | . . . Highest-Rated Ally . | . . . Total Orders . | . . . Ally Attacks . | . . . Total Damage . | . . . Kills . | . . . Allies Corrupted . | . . . Allies Melted . | . . . Intel | -11 -10 -10 ------- Run | Yrd Mat Sub Robot Analysis Total 2 | . 2 . Derelict Logs Recovered 3 | . . 3 Drone Launches . | . . . Drone Recoveries . | . . . Exploration | -11 -10 -10 ------------- Run | Yrd Mat Sub Turns Passed 5407 | 47 1149 4211 Spaces Moved 2668 | 11 495 2162 Core . | . . . Treads 1474 | 11 495 968 Legs . | . . . Wheels 1194 | . . 1194 Hover . | . . . Flight . | . . . Fastest Speed 110 | 160 160 110 Average Speed 159 | 160 160 159 Slowest Speed 250 | 160 160 250 Overloaded Moves . | . . . Propulsion Burnouts . | . . . Robots Hopped . | . . . Cave-ins Triggered . | . . . Exploration Rate (%) 66 | 3 97 98 Regions Visited 2 Branch Regions 1 Pre-discovered Areas 1 | . . 1 Known Exits Taken . | . . . Unknown Exits Taken 2 | 1 1 . Scrap Searched 7 | . . 7 Spaces Dug . | . . . Terrain Destroyed 13 | . . 13 Melee . | . . . Projectile 1 | . . 1 AOE 12 | . . 12 Terrain Rammed . | . . . Walls Destroyed . | . . . Machines Disabled . | . . . Actions | -11 -10 -10 --------- Run | Yrd Mat Sub Total 3498 | 24 778 2696 Wait 440 | . 214 226 Move 2666 | 10 494 2162 Hop . | . . . Pick Up 83 | 1 15 67 Fast Attach 19 | . 4 15 Attach 10 | . . 10 Detach . | . . . Swap 35 | 3 3 29 Drop 42 | 2 9 31 Fire 153 | 8 38 107 Melee 44 | . . 44 Ram . | . . . Kick . | . . . Crush 1 | . 1 . Escape Stasis . | . . . Rewire . | . . . Trap . | . . . Miscellaneous 5 | . . 5 Route ------- -11/Scrapyard -10/Materials (discovered 6 exits: [*Mat x3] / [*Min x2] / *Sub) -10/Subcaves (discovered 3 exits: *Mat x2 / *Rec) History --------- Turn | Location | Event 31 | -11/Scrapyard | Discovered new exit (range 3) 48 | -11/Scrapyard | Entered Materials 304 | -10/Materials | Build established: Mutant 349 | -10/Materials | Discovered new exit (range 10) 504 | -10/Materials | Discovered new exit (range 7) 674 | -10/Materials | Discovered new exit (range 7) 687 | -10/Materials | Discovered new exit (range 5) 791 | -10/Materials | Discovered new exit (range 16) 1170 | -10/Materials | Discovered new exit (range 8) 1197 | -10/Materials | Entered Subcaves 1235 | -10/Subcaves | Identified exit to Materials 1553 | -10/Subcaves | Disturbed a concealed Subdweller 1639 | -10/Subcaves | Disturbed a concealed Subdweller 1943 | -10/Subcaves | Visited Clippyterm 1948 | -10/Subcaves | Identified exit to Recycling 2582 | -10/Subcaves | Shifting Twisted Machinery released Piercing Trap 2636 | -10/Subcaves | Shifting Twisted Machinery released Sub. Laser 2700 | -10/Subcaves | Discovered exit to Materials (range 7) 3318 | -10/Subcaves | Build established: Derelict-Mutant 3439 | -10/Subcaves | Ambushed by Subdweller buried in earth 3716 | -10/Subcaves | Core integrity fell below 50% 3722 | -10/Subcaves | Build established: Mutant 3803 | -10/Subcaves | Shifting Twisted Machinery released Battle Rifle 3813 | -10/Subcaves | Core integrity fell below 20% 3836 | -10/Subcaves | Learned Materials stockpile data 3838 | -10/Subcaves | Shifting Twisted Machinery released Battle Rifle 3927 | -10/Subcaves | Visited 4L-MR0's lab 3950 | -10/Subcaves | Found Tower Shield 3952 | -10/Subcaves | Attached Tower Shield, gained temporary slots: Power, Propulsion x2, Utility x2, Weapon x2 4453 | -10/Subcaves | Build established: Derelict-Gunner 4646 | -10/Subcaves | Learned location of Zion (-7) 4646 | -10/Subcaves | Met a Zionite searching for "candidates" 4669 | -10/Subcaves | Shifting Twisted Machinery released Sub. Beam Cannon 4682 | -10/Subcaves | Shifting Twisted Machinery released Sub. Monowheel 4696 | -10/Subcaves | Learned 2 Materials zone layouts 5168 | -10/Subcaves | Found SUBCON Basin 5363 | -10/Subcaves | Build established: Hauler-Mutant 5408 | -10/Subcaves | Destroyed by G-34 Mercenary with Small Laser Last Messages --------------- 05167_ Dropped Broken Sub. Monowheel. 05167_ Dropped Grenade Launcher. 05168_ Dropped Shrapnel Trap. 05168_ Acquired SUBCON Basin. 05195_ Dropped Riot Gun. 05205_ Acquired Corrupted Sub. Laser. 05206_ Acquired 30 matter. 05221_ Dropped Riot Gun. 05221_ Acquired Sub. Machine Gun. 05254_ Sub. Monowheel shoots sparks and powers down. 05281_ Dropped Broken Sub. Monowheel. 05281_ Acquired Wheel. 05288_ Dropped Sub. Monowheel. 05288_ Acquired Wheel. 05304_ Dropped Battle Rifle. 05348_ Acquired Sub. Beam Cannon. 05351_ Acquired 20 matter. 05395_ G-47 Trooper destroyed. 05398_ Ion Engine destroyed. 05404_ Destroyed Heat Sink. Map ----- +----------------------------------------------------+ | #??????????## ## # ## # ### ##?????? | | #?????????## ## #######?## #??????? | | #?????????# ### #???????# ##??????? | | #?????????# ## #???????# # ###???????? | | ??????????# ##???????# ##???###???? | | #?????????## ###### ##????????# ######>##### | | #??????????## ##????####????????## ##""" """"# | | #???????????####?????????????????# ###" "# | | #????????????????????????????????# ##" % % # | | #????????????????????????????????# ### # | | #????????????????????????????????## ## # | | #???????????????????????????????## ##" # | | #???????????????????????????????# ##### # | | #???????????????????????????????# #???# ## | | ????????????????????????????????#" "#???# ###? | | ????????????????????????????????#" "#???# #??? | | ????????????????????????????????#" "##### #??? | | ????????????????????????????????#" "# ## #??? | | ????????????????????????????????#"" "#### #??? | | ????????????????????#######?????# " "#! & #??? | | ????????????????????#" ! "#?????### "# & #??? | | ????????????????????#&##%%#???????## * ^ #??? | | ?????????????????####& ####???????## ^ #??? | | ?????????????????# # "###??????## ## #??? | | ????????????????## # ## #????### ## ^^ ##??? | | ????????????????# < < @#?#### ######???? | | ????????????????## g%### !& # #???????? | | ??########?????### # ### ##???????? | | ??#""""""#?????# ## ### ! #?##????????? | | ??#"X""""#?????## ##; [=! ###?????????? | | ??#"] * #??????# ## * & = ##????????? | | ??#"&= #?????## # ### ## #????????? | | ??#"""" "#?????# ## ### """""#### ##???????? | | ??##### ##?????#" """" # """"""#??## #???????? | | ????#"" "#????##"""## " "##???# #???????? | | ???## X#????# " # """ "##???## "#???????? | | ??## ###???# #""#####????# ###???????? | | ??# #### #???### #""#??#####?# ##?????????? | | ?### ## ####### % !&"# #### #?# ###?????????? | | ?# ### # &! &% ##[ ##= ### # ####??????? | | ## [ # =%[=## ## #??????? | | ### "" #??????? | | ## # # ### ### #### ##??????? | | ### ######?## ####?# ##??## ##??????? | | ##?## ##??????## "##????####???## #??????? | | #???####???????# "##???????????# ##??????? | | # #####?###?###### ""#???????????## ##??????# | | # # # ### ### # # "##???????????# #??????# | | # "#????????????## #??????# | | # # # #"#???????????# ##??????# | +----------------------------------------------------+ Best States ------------- Heat Dissipation 25 Energy Generation 20 Energy Capacity 350 Matter Stores 300 Matter Capacity 300 Sight Range 16 Terrain Scan Density 10 Armor Coverage 2000 Evasion (%) 40 Recoil Reduction 2 Item Schematics ----------------- None Robot Schematics ------------------ None Fabricated ------------ Nothing Alien Tech Used ----------------- None Achievements -------------- None Challenges ------------ None Game ------ Seed HybridPulseGravjet Manual? 0 Play Time 00:33:23 Cumulative 325.8 hours Start 2024.07.31 @ 19:24:18 End 2024.07.31 @ 19:57:25 Sessions 1 Manual Loads 0 Difficulty Rogue Special Mode None Game No. 119 Rogue 117 Adventurer 2 Explorer 0 Win Type - Total 15 Types 6/0/7/1/0/0/0/1/0 Lore% 53 Gallery% 81 Achievement% 75 Wizard Run 0 Options --------- Layout 0 ASCII 0 Keyboard 0 Movement Numpad Keybinds 0 Fullscreen 2 Font 24/Smallcaps Map View 76x50 Zoom Use 0% Tactical HUD 1 Map Filters NONE Filters NONE Steam 1 RUN: 36e9d033-b795-4115-8f91-3a4e6b5761ae